Cogmind - Beta 16 @@@ ROGUE MODE // 2025.11.26 @ 20:56:00 Player: ClassActJerk Result: Destroyed by H-61 Shepherd with Heavy Assault Cannon Performance ------------- Evolutions (3) 1500 Regions Visited (4) 800 Robots Destroyed (77) 385 Value Destroyed (2384) 2384 Prototype IDs (2) 40 Alien Tech Used (0) 0 Bonus (0) 0 TOTAL SCORE: 5109 Bonus ------- None Cogmind --------- Core Integrity 0/700 Matter 232/300 Energy 100/100 System Corruption 5% Temperature Cool (0) Movement Walking (270) Ox2 Location -7/Factory Parts ------- > --- POWER (1) -------- (None) > --- PROPULSION (3) --- Improved Titanium Leg Improved Titanium Leg > --- UTILITY (5) ------ High-capacity Storage Unit Improved Signal Interpreter Improved Power Shielding Utility Shielding > --- WEAPON (4) ------- Gauss Cannon Rocket Array Powered Hammer > --- INVENTORY (20) --- Heavy Ion Engine Hybrid Deuterium Engine Airjet Airjet Armor Integrity Analyzer Dynamic Insulation System Mining Claw Peak State ------------ > --- POWER ------------ Improved Deuterium Engine > --- PROPULSION ------- Improved Flight Unit Improved Flight Unit Improved Flight Unit > --- UTILITY ---------- Large Storage Unit Improved Signal Interpreter Force Booster Hardened Light Armor Plating Layered Light Armor Plating > --- WEAPON ----------- Minigun Advanced Assault Cannon Advanced Assault Cannon Katana > --- INVENTORY -------- Nuclear Core Micro Nuclear Core Airjet Airjet Light Armor Plating Heavy Assault Rifle Mini Grenade Launcher Powered Hammer Mining Claw [Rating: 43] Favorites ----------- Power Deuterium Engine Engine Deuterium Engine Power Core Nuclear Core Propulsion Improved Flight Unit Treads Light Treads Leg Aluminum Leg Hover Unit Hover Unit Flight Unit Improved Flight Unit Utility Large Storage Unit Device Force Booster Storage Large Storage Unit Processor Improved Signal Interpreter Protection Power Shielding Weapon Katana Energy Gun Spread Laser Ballistic Gun Heavy Assault Rifle Ballistic Cannon Advanced Assault Cannon Launcher Rocket Array Impact Weapon Powered Hammer Slashing Weapon Katana Build | -11 -10 -9 -8 -7 ------- Run | Yrd Mat Mat Mat Fac Slots Evolved 6 | . . 2 2 2 Power . | . . . . . Propulsion 1 | . . . 1 . Utility 3 | . . . 1 2 Weapon 2 | . . 2 . . Parts Attached 80 | 6 6 22 17 29 Power 10 | 1 . 4 2 3 Engine 7 | 1 . 3 2 1 Core 3 | . . 1 . 2 Reactor . | . . . . . Propulsion 22 | 2 2 5 9 4 Treads 3 | 2 . 1 . . Leg 10 | . 2 4 . 4 Wheel . | . . . . . Hover 3 | . . . 3 . Flight 6 | . . . 6 . Utility 20 | 1 3 1 2 13 Device 1 | . . . . 1 Storage 6 | 1 3 1 . 1 Processor 2 | . . . . 2 Hackware . | . . . . . Protection 11 | . . . 2 9 Artifact . | . . . . . Weapon 28 | 2 1 12 4 9 Energy Gun 8 | 1 . 4 3 . Energy Cannon . | . . . . . Ballistic Gun 10 | 1 1 5 1 2 Ballistic Cannon 3 | . . . . 3 Launcher 3 | . . 1 . 2 Special Weapon . | . . . . . Impact Weapon 1 | . . . . 1 Slashing Weapon 3 | . . 2 . 1 Piercing Weapon . | . . . . . Special Melee Weapon . | . . . . . Unidentified Prototypes 2 | . . . 1 1 Parts Lost 44 | . 1 15 5 23 Power 6 | . 1 2 . 3 Propulsion 9 | . . 4 2 3 Utility 10 | . . . 1 9 Weapon 19 | . . 9 2 8 Highest Loss Streak 8 | . 1 8 3 4 To Critical Strikes . | . . . . . Average Backups 8 | 3 4 5 9 9 Power 1 | . 1 1 1 1 Propulsion 2 | . . . 2 2 Utility 1 | . . 1 2 1 Weapon 2 | 1 2 1 3 3 Tool/Special . | . . . . . Unused Backups 15 | . 1 1 4 9 Power 3 | . . 1 . 2 Propulsion 8 | . 1 . 4 3 Utility 2 | . . . . 2 Weapon 2 | . . . . 2 Tool/Special . | . . . . . Average Slot Usage (%) 91 | . 98 81 96 89 Engine 7 | . 13 8 9 4 Core 1 | . . . . 2 Treads 2 | . 18 . . . Leg 7 | . 9 18 3 6 Flight 12 | . . . 18 15 Storage 13 | . 27 22 14 7 Processor 2 | . . . . 4 Protection 14 | . . . 12 22 Energy Gun 7 | . 5 3 16 5 Ballistic Gun 10 | . 22 24 10 4 Ballistic Cannon 2 | . . . . 4 Impact Weapon 1 | . . . . 2 Slashing Weapon 4 | . . 2 8 4 Peak Build Rating 43 | 6 7 17 30 43 Average Rating 25 | 2 6 10 23 35 On Entrance 11 | . 6 7 17 29 Avg Prop Armor Cover (%) . | . . . . . Naked Turns . | . . . . . Heaviest Build 80 | 12 19 42 45 80 Greatest Support 60 | 40 40 20 20 60 Greatest Overweight (x) 6 | . . 3 5 6 Average Overweight (x) 1 | . . . 2 2 Largest Inventory Capacity 20 | 8 10 15 15 20 Average Capacity 14 | 5 8 10 15 16 Most Carried 15 | 5 10 9 15 15 Average Carried 8 | 3 4 4 9 9 Final Capacity 20 | 8 10 15 15 20 Final Carried 10 | 2 10 7 9 7 Class Distribution -------------------- 43% | Tank 33% | Mutant 10% | Scavenger-Tank 5% | Scavenger-Gunner 5% | Scavenger-Mutant Dominant Class ---------------- Mutant | -10/Materials Scavenger-Gunner | -9/Materials Scavenger-Tank | -8/Materials Tank | -7/Factory Resources | -11 -10 -9 -8 -7 ----------- Run | Yrd Mat Mat Mat Fac Matter Collected 1837 | 234 301 449 193 660 Remotely . | . . . . . Salvage Created 2866 | . 400 667 737 1062 Parts 146 | . 34 43 43 26 Haulers Intercepted 2 | . 1 . 1 . Recyclers Shooed 5 | . 1 2 . 2 Parts Field Recycled . | . . . . . Retrieved Matter . | . . . . . Parts Self-Destructed . | . . . . . Prevented . | . . . . . Parts Restored . | . . . . . Kills | -11 -10 -9 -8 -7 ------- Run | Yrd Mat Mat Mat Fac Combat Hostiles Destroyed 59 | . 10 13 14 22 Melee 19 | . . . 10 9 Guns 27 | . 10 12 4 1 Cannons 1 | . . . . 1 AOE 8 | . . 1 . 7 Classes Destroyed 13 | . 6 3 1 3 Worker 3 | . . 3 . . Builder 3 | . 1 2 . . Hauler 2 | . 1 . 1 . Recycler 7 | . 1 2 2 2 Watcher 3 | . 1 1 . 1 Swarmer 14 | . 6 4 4 . Cutter 3 | . . . . 3 Grunt 23 | . 4 5 5 9 Duelist 1 | . . 1 . . Sentry 7 | . . 3 4 . Specialist 6 | . . . . 6 Hunter 1 | . . . 1 . Programmer 4 | . . . . 4 Best Kill Streak 6 | . 3 6 4 4 Combat Bots Only 4 | . 3 4 4 3 Max Kills in Single Turn 3 | . 2 3 1 2 Gunslinging 1 | . 1 1 . . Exploded 2 | . . 1 . 2 Melee 1 | . . . 1 1 Uniques/NPCs Destroyed . | . . . . . Combat | -11 -10 -9 -8 -7 -------- Run | Yrd Mat Mat Mat Fac Hostile Shots Fired 553 | . 64 150 107 232 Missed 123 | . 15 42 22 44 Hits 430 | . 49 108 85 188 Melee 4 | . . 2 . 2 Projectile 426 | . 49 106 85 186 AOE 8 | . . . . 8 Critical Strikes 16 | . . 1 6 9 Actively Blocked 3 | . . . 2 1 Part Disruptions 2 | . . . . 2 Damage Taken 6790 | . 494 1420 1014 3862 Core 1372 | . 88 327 239 718 Absorbed by Shields . | . . . . . Redirected to Shielding 439 | . . . 124 315 Ignored by Resistances 120 | . . . . 120 Regen/Repaired (Parts) 34 | . . . . 34 Core Remaining (%) 59 | 100 64 18 56 . Volleys Fired 115 | . 30 48 7 30 Largest 4 | . 2 4 3 3 Hottest 157 | . 60 123 157 105 Shots Fired 267 | . 60 118 19 70 Gun 218 | . 60 116 19 23 Cannon 33 | . . . . 33 Launcher 16 | . . 2 . 14 Special . | . . . . . Kinetic 225 | . 58 102 9 56 Thermal 24 | . . 14 10 . Explosive 16 | . . 2 . 14 Electromagnetic 2 | . 2 . . . Robot Hit Streak 10 | . 10 9 3 9 Robot Miss Streak 7 | . 3 7 5 7 Penetration Max . | . . . . . Secondary Targets 7 | . 2 3 2 . Max Gunslinging Chain 1 | . 1 1 1 . Shots Hit Robots 235 | . 41 71 39 84 Core Hits 112 | . 18 36 24 34 Critical Kills 2 | . 1 1 . . Critical Parts Destroyed 6 | . . . . 6 Critical Strikes 16 | . 1 2 1 12 Burn 1 | . . 1 . . Destroy 2 | . 1 1 . . Blast 3 | . . . . 3 Smash 6 | . . . . 6 Sever 4 | . . . 1 3 Melee Attacks 100 | . . . 37 63 Impact 30 | . . . . 30 Slashing 70 | . . . 37 33 Piercing . | . . . . . Sneak Attacks 6 | . . . 5 1 Combat Hostiles 1 | . . . 1 . Follow-up Attacks . | . . . . . Damage Inflicted 5939 | . 520 1104 1174 3141 Guns 1680 | . 520 761 157 242 Cannons 549 | . . . . 549 Explosions 960 | . . 343 . 617 Melee 2750 | . . . 1017 1733 Ramming . | . . . . . Kinetic 1988 | . 510 624 63 791 Thermal 231 | . . 137 94 . Explosive 960 | . . 343 . 617 Electromagnetic 10 | . 10 . . . Impact 1073 | . . . . 1073 Slashing 1677 | . . . 1017 660 Piercing . | . . . . . Highest Corruption 5 | . . . 2 5 Average Corruption 3 | . . . 2 3 Corruption Purged . | . . . . . Corruption Blocked . | . . . . . Effects 14 | . . . . 14 Message Errors 3 | . . . . 3 Matter Fused 4 | . . . . 4 Heat Flow Errors 4 | . . . . 4 Energy Discharges 2 | . . . . 2 Alerts 1 | . . . . 1 Overload Shots . | . . . . . Overflow Damage 369 | . . 3 32 334 Projectiles 32 | . . . . 32 Explosions 17 | . . 3 . 14 Melee 320 | . . . 32 288 Knockbacks 11 | . . . . 11 Impact 5 | . . . . 5 Kinetic 6 | . . . . 6 Secondary . | . . . . . Self-Inflicted Damage 223 | . . 24 . 199 Shots 7 | . . 1 . 6 Rammed . | . . . . . Targets Rammed . | . . . . . Kicked . | . . . . . Crushed . | . . . . . Highest Temperature 299 | . 6 238 299 244 Average Temperature 71 | . 3 68 106 72 Received Heat Transfer 1788 | . 171 546 270 801 Siege Activations . | . . . . . Martial Activations . | . . . . . Shielding Activations . | . . . . . Robots Disrupted . | . . . . . Combat Hostiles . | . . . . . Robots Corrupted 4 | . . . . 4 Combat Hostiles 4 | . . . . 4 Parts Fried 6 | . . . . 6 Impact Corruptions 10 | . . . . 10 Robots Melted . | . . . . . Combat Hostiles . | . . . . . Parts Melted 3 | . . 2 . 1 Heat Transferred 625 | . . 481 144 . Parts Sabotaged . | . . . . . Parts Stolen . | . . . . . Parts Stripped . | . . . . . Power Chain Reactions . | . . . . . Alert | -11 -10 -9 -8 -7 ------- Run | Yrd Mat Mat Mat Fac Maximum Alert Level 1 | . . . . 1 Low Security (%) 99 | 100 100 100 100 99 Level 1 . | . . . . . Level 2 . | . . . . . Level 3 . | . . . . . Level 4 . | . . . . . Level 5 . | . . . . . High Security . | . . . . . Max Security . | . . . . . Peak Influence 223 | . 115 124 125 223 Initial 34 | . . 34 . . Average 41 | . 43 54 33 41 Influence Increases 1905 | . 323 410 414 758 Destroy 0b10 Robot/C 1180 | . 200 260 280 440 Destroy 0b10 Robot/NC 90 | . 20 40 15 15 Destroy Leader 300 | . 44 62 72 122 Successful Hack 95 | . 14 6 17 58 Disable Machine 30 | . 15 15 . . Destroy Structure 120 | . . 27 . 93 Partial Spotted 30 | . 30 . . . Lose Combat Pursuer 60 | . . . 30 30 Influence Decreases 1692 | . 241 492 414 545 Entered New Map 48 | . . 48 . . Time Decay 1263 | . 231 300 397 335 Lost Part 381 | . 10 144 17 210 Squads Dispatched 15 | . 1 . . 14 Investigation 6 | . 1 . . 5 Extermination 4 | . . . . 4 Reinforcement 5 | . . . . 5 Assault . | . . . . . Garrison . | . . . . . Intercept . | . . . . . Searches Triggered . | . . . . . Construction Impeded . | . . . . . Haulers Reinforced . | . . . . . Active Scanning Responses . | . . . . . Cargo Convoy Interrupts . | . . . . . Stealth | -11 -10 -9 -8 -7 --------- Run | Yrd Mat Mat Mat Fac Distress Signals 7 | . 1 1 4 1 Communications Jammed . | . . . . . Distress Signals . | . . . . . Times Spotted 83 | . 15 16 24 28 Peak Tracking Total 6 | . 6 5 5 4 Tactical Retreats 2 | . . . 1 1 Traps | -11 -10 -9 -8 -7 ------- Run | Yrd Mat Mat Mat Fac Traps Triggered 2 | . 1 . 1 . Indirectly . | . . . . . Trap Hack Attempts . | . . . . . Triggered . | . . . . . Disarmed . | . . . . . Reprogrammed . | . . . . . Reused . | . . . . . Traps Extracted . | . . . . . Installed . | . . . . . Triggered . | . . . . . Machines | -11 -10 -9 -8 -7 ---------- Run | Yrd Mat Mat Mat Fac Machines Disabled 2 | . 1 1 . . Max in Single Turn 1 | . 1 1 . . Machines Repaired . | . . . . . Machines Dismantled . | . . . . . Machines Sabotaged . | . . . . . Overloaded Fab Kills . | . . . . . Hacking | -11 -10 -9 -8 -7 --------- Run | Yrd Mat Mat Mat Fac Machines Accessed 10 | . 2 1 1 6 Terminals 7 | . 2 1 1 3 Fabricators 2 | . . . . 2 Repair Stations 1 | . . . . 1 Recycling Units . | . . . . . Scanalyzers . | . . . . . Garrison Access . | . . . . . Total Hacks 28 | . 6 2 3 17 Successful 13 | . 4 1 2 6 Failed 15 | . 2 1 1 11 Catastrophic 6 | . . . 1 5 Database Lockouts . | . . . . . Manual 17 | . 6 2 3 6 Terminals 19 | . 6 2 3 8 Fabricators 5 | . . . . 5 Repair Stations 4 | . . . . 4 Recycling Units . | . . . . . Scanalyzers . | . . . . . Garrison Access . | . . . . . Terminal Hacks 6 | . 2 . 2 2 Record 1 | . . . . 1 Level Access Points 1 | . . . 1 . Branch Access Points 2 | . 1 . 1 . Disarm Traps 1 | . 1 . . . Recall Reinforcements 1 | . . . . 1 Fabricator Hacks 1 | . . . . 1 Network Status 1 | . . . . 1 Repair Station Hacks 2 | . . . . 2 Scan Component 1 | . . . . 1 Repair 1 | . . . . 1 Recycling Unit Hacks . | . . . . . Scanalyzer . | . . . . . Garrison Access Hacks . | . . . . . Unauthorized Hacks 4 | . 2 1 . 1 Terminals 3 | . 2 1 . . Assimilate 3 | . 2 1 . . Fabricators 1 | . . . . 1 Report 1 | . . . . 1 Repair Stations . | . . . . . Recycling Units . | . . . . . Scanalyzers . | . . . . . Garrison Access . | . . . . . Data Cores Recovered . | . . . . . Used . | . . . . . Hacking Detections 9 | . 1 1 1 6 Full Trace Events 5 | . . . . 5 Feedback Events . | . . . . . Feedback Blocked . | . . . . . Robot Schematics Acquired . | . . . . . Robots Built . | . . . . . Authchips . | . . . . . Time . | . . . . . Total Robot Build Rating . | . . . . . Part Schematics Acquired . | . . . . . Parts Built . | . . . . . Authchips . | . . . . . Time . | . . . . . Total Part Build Rating . | . . . . . Part Studies Acquired . | . . . . . Parts Repaired 1 | . . . . 1 Time 19 | . . . . 19 Parts Recycled . | . . . . . Recycled Matter . | . . . . . Retrieved Matter . | . . . . . Retrieved Components . | . . . . . Parts Scanalyzed . | . . . . . Part Schematics Acquired . | . . . . . Parts Damaged . | . . . . . Bothacking | -11 -10 -9 -8 -7 ------------ Run | Yrd Mat Mat Mat Fac Used RIF Installer . | . . . . . Robots Hacked . | . . . . . Non-combat . | . . . . . Combat . | . . . . . Robot Hacks Applied . | . . . . . Relay Couplers Released . | . . . . . Fabnet Peak Effective % . | . . . . . Robots Rewired . | . . . . . Allies Hacked . | . . . . . Hacks Repelled . | . . . . . Allies | -11 -10 -9 -8 -7 -------- Run | Yrd Mat Mat Mat Fac Total Allies 1 | . 1 . . . Largest Group 1 | . 1 . . . Highest-Rated Group 10 | . 10 . . . Highest-Rated Ally 10 | . 10 . . . Total Orders . | . . . . . Ally Attacks . | . . . . . Total Damage . | . . . . . Kills . | . . . . . Allies Corrupted . | . . . . . Allies Melted . | . . . . . Intel | -11 -10 -9 -8 -7 ------- Run | Yrd Mat Mat Mat Fac Active Infowar (turns) . | . . . . . Robot Analysis Total . | . . . . . Derelict Logs Recovered . | . . . . . Drone Launches . | . . . . . Drone Recoveries . | . . . . . Exploration | -11 -10 -9 -8 -7 ------------- Run | Yrd Mat Mat Mat Fac Turns Passed 5684 | 60 701 707 1273 2943 Spaces Moved 2028 | 36 363 262 378 989 Core 9 | 8 . 1 . . Treads 246 | 28 199 19 . . Legs 850 | . 164 242 73 371 Wheels . | . . . . . Hover 45 | . . . 45 . Flight 878 | . . . 260 618 Fastest Speed 50 | 50 120 120 172 120 Average Speed 204 | 135 141 181 222 228 Slowest Speed 457 | 160 160 260 437 457 Overloaded Moves . | . . . . . Propulsion Burnouts . | . . . . . Robots Hopped . | . . . . . Potential Cave-ins . | . . . . . Cave-ins Triggered . | . . . . . Exploration Rate (%) 24 | 4 52 28 23 16 Regions Visited 4 Branch Regions . Pre-discovered Areas . | . . . . . Known Exits Taken 1 | . . . 1 . Unknown Exits Taken 3 | 1 1 1 . . Scrap Searched . | . . . . . Spaces Dug . | . . . . . Terrain Destroyed 185 | . . 33 . 152 Melee . | . . . . . Projectile 7 | . . . . 7 AOE 178 | . . 33 . 145 Terrain Rammed . | . . . . . Walls Destroyed . | . . . . . Machines Disabled . | . . . . . Actions | -11 -10 -9 -8 -7 --------- Run | Yrd Mat Mat Mat Fac Total 3216 | 46 491 413 750 1516 Wait 760 | . 73 53 270 364 Move 2024 | 35 362 261 377 989 Hop . | . . . . . Pick Up 94 | 5 14 21 25 29 Fast Attach 3 | 3 . . . . Attach 76 | 3 4 22 18 29 Detach 4 | . 1 1 . 2 Swap 6 | . 2 1 . 3 Drop 36 | . 5 6 16 9 Fire 115 | . 30 48 7 30 Melee 98 | . . . 37 61 Ram . | . . . . . Kick . | . . . . . Crush . | . . . . . Escape Stasis . | . . . . . Rewire . | . . . . . Trap . | . . . . . Miscellaneous . | . . . . . Route ------- -11/Scrapyard -10/Materials (discovered 2 exits: *Mat / Min) -9/Materials -8/Materials (discovered 4 exits: *Fac x3 / Sto) -7/Factory (discovered 2 exits: *Fac x2) History --------- Turn | Location | Event 5 | -11/Scrapyard | Discovered new exit (range 16) 61 | -11/Scrapyard | Entered Materials 83 | -10/Materials | Identified exit to Mines 307 | -10/Materials | Build established: Mutant 744 | -10/Materials | Discovered new exit (range 16) 762 | -10/Materials | Entered another Materials area 762 | -9/Materials | Evolved 2 slots: Weapon x2 1070 | -9/Materials | Core integrity fell below 50% 1110 | -9/Materials | Lost 8 parts (1p2n5w) 1204 | -9/Materials | Core integrity fell below 20% 1228 | -9/Materials | Lost 3 parts (1p2w) 1431 | -9/Materials | Discovered new exit (range 10) 1469 | -9/Materials | Entered another Materials area 1469 | -8/Materials | Evolved 2 slots: Propulsion x1, Utility x1 1872 | -8/Materials | Build established: Scavenger-Tank 2158 | -8/Materials | Identified exit to Storage 2158 | -8/Materials | Identified exit to Factory 2247 | -8/Materials | Lost 3 parts (1n2w) 2538 | -8/Materials | Build established: Tank 2742 | -8/Materials | Entered Factory 2742 | -7/Factory | Evolved 2 slots: Utility x2 3733 | -7/Factory | Lost 3 parts (1u2w) 3921 | -7/Factory | Discovered new exit (range 15) 4039 | -7/Factory | Identified exit to Factory 4478 | -7/Factory | Lost 3 parts (1n1u1w) 4683 | -7/Factory | Lost 3 parts (1p2w) 4771 | -7/Factory | Core integrity fell below 50% 4785 | -7/Factory | Lost 3 parts (2u1w) 4841 | -7/Factory | Lost 4 parts (1p1u2w) 5043 | -7/Factory | Build established: Mutant 5125 | -7/Factory | Repaired Imp. Propulsion Shielding 5461 | -7/Factory | Found Prototype Launcher 5462 | -7/Factory | Identified Rocket Array 5608 | -7/Factory | Core integrity fell below 20% 5638 | -7/Factory | Lost 4 parts (2n2u) 5670 | -7/Factory | Discovered exit to Factory (range 12) 5685 | -7/Factory | Destroyed by H-61 Shepherd with Heavy Assault Cannon Last Messages --------------- 05674_ Neutrino Reactor explodes. 05676_ K-01 Serf collects debris. 05677_ The unstable cave ceiling collapses. 05677_ Destroyed Imp. Hover Unit. 05677_ W-25 Informer Lgt. Deuterium Engine blasted off. 05677_ W-25 Informer knocked back. 05677_ W-25 Informer destroyed. 05677_ C-17 Slicer destroyed. 05678_ &ZN3SVY:RGKAW 1D> 62PWW6RHKGP A2 05679_ K-01 Serf collects debris. 05679_ Nuclear Core destroyed. 05681_ The unstable cave ceiling collapses. 05682_ K-01 Serf collects debris. 05684_ Slug penetrates Earth. 05685_ K-01 Serf collects debris. 05685_ R-06 Scavenger collects Corrupted Wheel. 05685_ H-61 Shepherd calls for reinforcements. 05685_ ALERT: Hostile activity reported, dispatching reinforcements to area. Map ----- +----------------------------------------------------+ | ?????????????????????????????????????????????????? | | ?????????????????????????????????????????????????? | | ?????????????????????????????????????????????????? | | ?????????????????????????????????????????????????? | | ?????????????????????????????????????????????????? | | ?????????????????????????????????????????????????? | | ?????????????????????????????????????????????????? | | ?????????????????????????????????????????????????? | | ?????????????????????????????????????????????????? | | ?????????????????????????????????????????????????? | | ??????????????????????/// ?????????????????????? | | ???????????????????? /// ?????????????????????? | | ????????????????? / // ?????????????????????? | | ??????????????? ?????????????????????? | | ????????????? ] ##????????????????????? | | ????????????? #????????????????????? | | ???????????? #????????????????????? | | ???????????? #????????????????????? | | ??????????? ???##??#?#???????????? | | ??????????? u ?? #???????????? | | ??????????? #?""" [ #???????????? | | ?????????? # "T" !#???????????? | | ?????????? # #???????????? | | ????????? % % # ## #####???????? | | ????????? * ???????? | | ????????? @ | ???????? | | ????????? %= = ???????? | | ????????? * #????????? | | ????????? ?????????? | | ????????"? = ?????????? | | ????? """ r ! ??????????? | | ????? """ " ??????????? | | r ; ##??????????? | | """ " # ??????????? | | """ "" #?????????? | | """ "" # # H #?????????? | | ##;? ??????????? | | #?# ? ??????????? | | k #?????????????????? | | ???# #?##??????????????? | | ???# ####+############## ## # ???????????? | | ???# # #?## # # #??????????? | | ???# """ # ### # # # #??????????? | | ???# """ # """ """ ## # # # #??????????? | | ?### """ # """ """ ## #%# ## #??????????? | | ? ^ "" %/ """ """ ## # # ## #??????????? | | ??## "" # ###### # # #??????????? | | ???# # """ """ # # ## # #??????????? | | ???# # """ """ # # # # #??????????? | | ???# #% """ """ # *# # # #??????????? | +----------------------------------------------------+ Best States ------------- Heat Dissipation 34 Energy Generation 16 Energy Capacity 290 Matter Stores 400 Matter Capacity 400 Sight Range 16 Terrain Scan Density 210 Armor Coverage 450 Resistance: KI 30 Power Shielding 66 Propulsion Shielding 66 Utility Shielding 33 Weapon Shielding 66 Evasion (%) 55 Recoil Reduction 2 Force Boost 20 Item Schematics ----------------- None Robot Schematics ------------------ None Fabricated ------------ Nothing Repaired ---------- Imp. Propulsion Shielding | 66% | -7/Factory Studied --------- None Alien Tech Used ----------------- None Achievements -------------- None Challenges ------------ None Game ------ Seed NetworkedSixFlail Manual? 0 Play Time 00:41:21 Cumulative 39.1 hours Start 2025.11.26 @ 19:18:53 End 2025.11.26 @ 20:56:00 Sessions 1 Manual Loads 0 Difficulty Rogue Special Mode None Game No. 117 Rogue 117 Adventurer 0 Explorer 0 Win Type - Total 0 Types 0/0/0/0/0/0/0/0/0/0 Lore% 16 Gallery% 27 Achievement% 20 Wizard Run 0 Options --------- Layout 1 ASCII 0 Keyboard 0 Movement Mouse Keybinds 0 Fullscreen 1 Font 24/Terminus Map View 50x35 Zoom Use 0% Tactical HUD 1 Map Filters NONE Filters NONE Steam 1 RUN: 13217165-f4fc-4c52-a704-d1643e847607